[Event "Titled Tuesday Blitz January 03 Late 2023"]
[White "Msellek, Ilyass"]
[Black "Ankerst, Mihael"]
[WhiteFideId "675938"]
[BlackFideId "14602369"]
[WhiteElo "2420"]
[BlackElo "2370"]
[Result "0-1"]
[Round "01"]
[TimeControl "180+2"]
[Date "2023.01.03"]
[WhiteClock "0:00:53"]
[BlackClock "0:00:50"]

1. d4 {[%clk 0:02:48]}  Nf6 {[%clk 0:02:59]} 2. Nf3 {[%clk 0:02:46]}  g6 {[%clk 0:03:00]} 3. g3 {[%clk 0:02:42]}  Bg7 {[%clk 0:03:00]} 4. Bg2 {[%clk 0:02:43]}  O-O {[%clk 0:03:00]} 5. O-O {[%clk 0:02:44]}  d6 {[%clk 0:03:01]} 6. b3 {[%clk 0:02:33]}  a5 {[%clk 0:03:01]} 7. a4 {[%clk 0:02:27]}  c5 {[%clk 0:02:59]} 8. Bb2 {[%clk 0:02:27]}  Nc6 {[%clk 0:02:50]} 9. dxc5 {[%clk 0:02:16]}  dxc5 {[%clk 0:02:51]} 10. Nbd2 {[%clk 0:02:16]}  Bf5 {[%clk 0:02:48]} 11. Nh4 {[%clk 0:02:11]}  Bg4 {[%clk 0:02:44]} 12. h3 {[%clk 0:02:03]}  Be6 {[%clk 0:02:44]} 13. Nhf3 {[%clk 0:01:58]}  Bd5 {[%clk 0:02:40]} 14. Re1 {[%clk 0:01:56]}  Qc7 {[%clk 0:02:32]} 15. e4 {[%clk 0:01:52]}  Be6 {[%clk 0:02:32]} 16. Qe2 {[%clk 0:01:53]}  Rfd8 {[%clk 0:02:31]} 17. Nc4 {[%clk 0:01:53]}  Nd4 {[%clk 0:02:30]} 18. Nxd4 {[%clk 0:01:50]}  cxd4 {[%clk 0:02:30]} 19. Na3 {[%clk 0:01:50]}  Rac8 {[%clk 0:02:28]} 20. Rad1 {[%clk 0:01:50]}  Qc5 {[%clk 0:02:19]} 21. Rd2 {[%clk 0:01:43]}  Ne8 {[%clk 0:02:13]} 22. Red1 {[%clk 0:01:37]}  d3 {[%clk 0:02:13]} 23. cxd3 {[%clk 0:01:34]}  Bxb2 {[%clk 0:02:13]} 24. Nb5 {[%clk 0:01:22]}  Bd4 {[%clk 0:02:02]} 25. Kh2 {[%clk 0:01:17]}  Bxb3 {[%clk 0:01:59]} 26. Rf1 {[%clk 0:01:15]}  Bxa4 {[%clk 0:01:57]} 27. Nxd4 {[%clk 0:01:16]}  Qxd4 {[%clk 0:01:51]} 28. f4 {[%clk 0:01:17]}  Rc3 {[%clk 0:01:47]} 29. Rf3 {[%clk 0:01:13]}  Rdc8 {[%clk 0:01:47]} 30. f5 {[%clk 0:01:08]}  Rc2 {[%clk 0:01:41]} 31. h4 {[%clk 0:01:01]}  Rxd2 {[%clk 0:01:38]} 32. Qxd2 {[%clk 0:01:02]}  Rc2 {[%clk 0:01:38]} 33. Qxa5 {[%clk 0:01:02]}  Qb2 {[%clk 0:01:29]} 34. Qxa4 {[%clk 0:00:59]}  Rxg2+ {[%clk 0:01:29]} 35. Kh3 {[%clk 0:01:00]}  Nf6 {[%clk 0:01:18]} 36. g4 {[%clk 0:00:59]}  Qe2 {[%clk 0:00:51]} 37. Rg3 {[%clk 0:00:53]}  Rh2# {[%clk 0:00:50]} 0-1


[Site "https://www.chess.com"]

[Event "Titled Tuesday Blitz January 03 Late 2023"]
[White "Kujawski, Adam"]
[Black "Baskin, Robert"]
[WhiteFideId "1100920"]
[BlackFideId "24662402"]
[WhiteElo "2173"]
[BlackElo "2442"]
[Result "0-1"]
[Round "01"]
[TimeControl "180+2"]
[Date "2023.01.03"]
[WhiteClock "0:00:02"]
[BlackClock "0:01:12"]

1. e4 {[%clk 0:02:54]}  Nc6 {[%clk 0:02:58]} 2. d4 {[%clk 0:02:53]}  d6 {[%clk 0:02:57]} 3. Nf3 {[%clk 0:02:50]}  Nf6 {[%clk 0:02:57]} 4. Nc3 {[%clk 0:02:49]}  g6 {[%clk 0:02:57]} 5. h3 {[%clk 0:02:47]}  Bg7 {[%clk 0:02:57]} 6. Be3 {[%clk 0:02:47]}  O-O {[%clk 0:02:53]} 7. a4 {[%clk 0:02:45]}  a6 {[%clk 0:02:48]} 8. Be2 {[%clk 0:02:43]}  e5 {[%clk 0:02:47]} 9. dxe5 {[%clk 0:02:42]}  dxe5 {[%clk 0:02:47]} 10. Bc5 {[%clk 0:02:28]}  Re8 {[%clk 0:02:44]} 11. Qd2 {[%clk 0:02:28]}  h6 {[%clk 0:02:37]} 12. O-O-O {[%clk 0:02:25]}  Qxd2+ {[%clk 0:02:36]} 13. Rxd2 {[%clk 0:02:24]}  Be6 {[%clk 0:02:35]} 14. Rhd1 {[%clk 0:02:21]}  Bf8 {[%clk 0:02:27]} 15. Bxf8 {[%clk 0:02:13]}  Kxf8 {[%clk 0:02:27]} 16. b3 {[%clk 0:02:11]}  Ke7 {[%clk 0:02:14]} 17. Kb2 {[%clk 0:02:11]}  Rad8 {[%clk 0:02:13]} 18. Rxd8 {[%clk 0:02:06]}  Rxd8 {[%clk 0:02:13]} 19. Rxd8 {[%clk 0:02:06]}  Kxd8 {[%clk 0:02:13]} 20. Nd2 {[%clk 0:02:07]}  Nd4 {[%clk 0:02:03]} 21. Bc4 {[%clk 0:02:05]}  Ke7 {[%clk 0:01:58]} 22. Bxe6 {[%clk 0:02:03]}  Kxe6 {[%clk 0:01:58]} 23. b4 {[%clk 0:01:47]}  h5 {[%clk 0:01:57]} 24. Nb3 {[%clk 0:01:43]}  h4 {[%clk 0:01:57]} 25. Nc5+ {[%clk 0:01:39]}  Ke7 {[%clk 0:01:56]} 26. Nxb7 {[%clk 0:01:39]}  Nh5 {[%clk 0:01:51]} 27. Nd5+ {[%clk 0:01:30]}  Kd7 {[%clk 0:01:50]} 28. Nc5+ {[%clk 0:01:28]}  Kd6 {[%clk 0:01:48]} 29. Nxa6 {[%clk 0:01:26]}  c6 {[%clk 0:01:45]} 30. Ne3 {[%clk 0:01:25]}  Nf4 {[%clk 0:01:44]} 31. Nc5 {[%clk 0:01:13]}  g5 {[%clk 0:01:30]} 32. a5 {[%clk 0:01:09]}  g4 {[%clk 0:01:28]} 33. c3 {[%clk 0:00:19]}  Nb5 {[%clk 0:01:28]} 34. Nf5+ {[%clk 0:00:15]}  Kc7 {[%clk 0:01:24]} 35. a6 {[%clk 0:00:11]}  Nxg2 {[%clk 0:01:18]} 36. Nxh4 {[%clk 0:00:07]}  Nxh4 {[%clk 0:01:16]} 37. hxg4 {[%clk 0:00:08]}  Nf3 {[%clk 0:01:14]} 38. c4 {[%clk 0:00:08]}  Na7 {[%clk 0:01:15]} 39. Nd3 {[%clk 0:00:05]}  f6 {[%clk 0:01:12]} 40. Kc3 {[%clk 0:00:03]}  Nh2 {[%clk 0:01:12]} 41. f3 {[%clk 0:00:02]}  Nxf3 {[%clk 0:01:12]} 0-1


[Site "https://www.chess.com"]

[Event "Titled Tuesday Blitz January 03 Late 2023"]
[White "Fishbein, Alexander"]
[Black "Alexikov, Alexander"]
[WhiteFideId "2000377"]
[BlackFideId "14103958"]
[WhiteElo "2366"]
[BlackElo "2209"]
[Result "1-0"]
[Round "01"]
[TimeControl "180+2"]
[Date "2023.01.03"]
[WhiteClock "0:00:13"]
[BlackClock "0:00:03"]

1. e4 {[%clk 0:02:59]}  c5 {[%clk 0:02:59]} 2. Nf3 {[%clk 0:02:57]}  d6 {[%clk 0:02:59]} 3. d4 {[%clk 0:02:55]}  cxd4 {[%clk 0:02:59]} 4. Nxd4 {[%clk 0:02:55]}  Nf6 {[%clk 0:02:58]} 5. Nc3 {[%clk 0:02:55]}  a6 {[%clk 0:02:59]} 6. Be2 {[%clk 0:02:55]}  e5 {[%clk 0:02:57]} 7. Nb3 {[%clk 0:02:55]}  Be6 {[%clk 0:02:57]} 8. O-O {[%clk 0:02:54]}  Be7 {[%clk 0:02:55]} 9. Re1 {[%clk 0:02:54]}  O-O {[%clk 0:02:54]} 10. Bf1 {[%clk 0:02:54]}  Nbd7 {[%clk 0:02:51]} 11. Nd5 {[%clk 0:02:54]}  Nxd5 {[%clk 0:02:48]} 12. exd5 {[%clk 0:02:54]}  Bf5 {[%clk 0:02:48]} 13. a4 {[%clk 0:02:53]}  Rc8 {[%clk 0:02:37]} 14. c3 {[%clk 0:02:52]}  h6 {[%clk 0:02:32]} 15. a5 {[%clk 0:02:44]}  Bg5 {[%clk 0:02:25]} 16. Bxg5 {[%clk 0:02:42]}  hxg5 {[%clk 0:02:20]} 17. Nd2 {[%clk 0:02:37]}  g4 {[%clk 0:01:55]} 18. Nc4 {[%clk 0:02:33]}  Nf6 {[%clk 0:01:50]} 19. Qd2 {[%clk 0:02:22]}  Ne4 {[%clk 0:01:22]} 20. Qe3 {[%clk 0:02:21]}  Nc5 {[%clk 0:01:19]} 21. b4 {[%clk 0:02:08]}  Ne4 {[%clk 0:01:18]} 22. Rac1 {[%clk 0:02:02]}  Nf6 {[%clk 0:01:05]} 23. Nb6 {[%clk 0:01:56]}  Rc7 {[%clk 0:01:04]} 24. c4 {[%clk 0:01:54]}  g6 {[%clk 0:01:02]} 25. c5 {[%clk 0:01:44]}  Kg7 {[%clk 0:01:01]} 26. Red1 {[%clk 0:01:37]}  Rh8 {[%clk 0:00:55]} 27. cxd6 {[%clk 0:01:34]}  Qxd6 {[%clk 0:00:54]} 28. Rxc7 {[%clk 0:01:33]}  Qxc7 {[%clk 0:00:53]} 29. d6 {[%clk 0:01:33]}  Qc2 {[%clk 0:00:47]} 30. Rc1 {[%clk 0:01:28]}  Qe4 {[%clk 0:00:45]} 31. Qxe4 {[%clk 0:01:25]}  Bxe4 {[%clk 0:00:43]} 32. Bc4 {[%clk 0:01:01]}  Rd8 {[%clk 0:00:32]} 33. Rd1 {[%clk 0:00:54]}  Kf8 {[%clk 0:00:30]} 34. Bb3 {[%clk 0:00:35]}  Bc6 {[%clk 0:00:28]} 35. Nc4 {[%clk 0:00:32]}  Ne4 {[%clk 0:00:23]} 36. Nxe5 {[%clk 0:00:31]}  Nxd6 {[%clk 0:00:22]} 37. Nxc6 {[%clk 0:00:23]}  bxc6 {[%clk 0:00:20]} 38. Kf1 {[%clk 0:00:22]}  f5 {[%clk 0:00:19]} 39. Bc4 {[%clk 0:00:19]}  Ke7 {[%clk 0:00:18]} 40. Bxa6 {[%clk 0:00:18]}  Rb8 {[%clk 0:00:18]} 41. Rd4 {[%clk 0:00:16]}  Nb5 {[%clk 0:00:16]} 42. Bxb5 {[%clk 0:00:16]}  cxb5 {[%clk 0:00:15]} 43. Ke2 {[%clk 0:00:15]}  Ra8 {[%clk 0:00:12]} 44. Kd3 {[%clk 0:00:15]}  Ke6 {[%clk 0:00:11]} 45. Kc3 {[%clk 0:00:14]}  Rc8+ {[%clk 0:00:09]} 46. Kb3 {[%clk 0:00:14]}  Rc1 {[%clk 0:00:08]} 47. Rd2 {[%clk 0:00:13]}  Rb1+ {[%clk 0:00:08]} 48. Rb2 {[%clk 0:00:13]}  Rd1 {[%clk 0:00:08]} 49. a6 {[%clk 0:00:12]}  Rd7 {[%clk 0:00:05]} 50. Ra2 {[%clk 0:00:12]}  Ra7 {[%clk 0:00:05]} 51. Kc3 {[%clk 0:00:12]}  Kd5 {[%clk 0:00:04]} 52. Kd3 {[%clk 0:00:12]}  Kd6 {[%clk 0:00:04]} 53. Kd4 {[%clk 0:00:12]}  Kc6 {[%clk 0:00:04]} 54. Ke5 {[%clk 0:00:12]}  Kb6 {[%clk 0:00:03]} 55. Kf6 {[%clk 0:00:13]}  Rxa6 {[%clk 0:00:02]} 56. Rxa6+ {[%clk 0:00:13]}  Kxa6 {[%clk 0:00:03]} 57. Kxg6 {[%clk 0:00:13]}  Kb6 {[%clk 0:00:03]} 58. Kxf5 {[%clk 0:00:13]}  Kc6 {[%clk 0:00:03]} 59. Ke5 {[%clk 0:00:13]} 1-0


[Site "https://www.chess.com"]

[Event "Titled Tuesday Blitz January 03 Late 2023"]
[White "De La Colina, Nicolas"]
[Black "Schmidt, Harald"]
[WhiteFideId "30946921"]
[BlackFideId "4648358"]
[WhiteElo "2244"]
[BlackElo "2347"]
[Result "0-1"]
[Round "01"]
[TimeControl "180+2"]
[Date "2023.01.03"]
[WhiteClock "0:00:05"]
[BlackClock "0:00:10"]

1. e4 {[%clk 0:03:00]}  d6 {[%clk 0:02:02]} 2. d4 {[%clk 0:02:58]}  Nf6 {[%clk 0:02:01]} 3. Nc3 {[%clk 0:02:59]}  Nc6 {[%clk 0:01:58]} 4. Nf3 {[%clk 0:02:53]}  e5 {[%clk 0:01:58]} 5. d5 {[%clk 0:02:50]}  Ne7 {[%clk 0:01:57]} 6. h3 {[%clk 0:02:45]}  g6 {[%clk 0:01:51]} 7. Be3 {[%clk 0:02:45]}  Bg7 {[%clk 0:01:51]} 8. Qd2 {[%clk 0:02:45]}  O-O {[%clk 0:01:49]} 9. O-O-O {[%clk 0:02:45]}  b5 {[%clk 0:01:46]} 10. Bxb5 {[%clk 0:02:41]}  Bd7 {[%clk 0:01:42]} 11. Bc4 {[%clk 0:02:27]}  Nxe4 {[%clk 0:01:29]} 12. Nxe4 {[%clk 0:02:21]}  f5 {[%clk 0:01:29]} 13. Qe2 {[%clk 0:02:04]}  fxe4 {[%clk 0:01:28]} 14. Ng5 {[%clk 0:02:05]}  Nf5 {[%clk 0:01:22]} 15. Nxe4 {[%clk 0:02:01]}  Nxe3 {[%clk 0:01:21]} 16. Qxe3 {[%clk 0:02:01]}  Rf4 {[%clk 0:01:14]} 17. g3 {[%clk 0:01:42]}  Rf8 {[%clk 0:01:10]} 18. f3 {[%clk 0:01:33]}  a5 {[%clk 0:01:05]} 19. h4 {[%clk 0:01:31]}  a4 {[%clk 0:01:03]} 20. h5 {[%clk 0:01:28]}  Bf5 {[%clk 0:01:02]} 21. hxg6 {[%clk 0:01:22]}  Bxg6 {[%clk 0:01:01]} 22. Bd3 {[%clk 0:00:59]}  a3 {[%clk 0:00:59]} 23. b3 {[%clk 0:00:59]}  Qe7 {[%clk 0:00:55]} 24. Nd2 {[%clk 0:00:51]}  e4 {[%clk 0:00:47]} 25. Nxe4 {[%clk 0:00:34]}  Qe5 {[%clk 0:00:45]} 26. c3 {[%clk 0:00:20]}  Rae8 {[%clk 0:00:44]} 27. Kb1 {[%clk 0:00:16]}  Qxc3 {[%clk 0:00:41]} 28. Nxc3 {[%clk 0:00:16]}  Rxe3 {[%clk 0:00:41]} 29. Bxg6 {[%clk 0:00:17]}  hxg6 {[%clk 0:00:36]} 30. Na4 {[%clk 0:00:17]}  Rfxf3 {[%clk 0:00:34]} 31. Rc1 {[%clk 0:00:17]}  Re7 {[%clk 0:00:31]} 32. Rhg1 {[%clk 0:00:16]}  Rf2 {[%clk 0:00:30]} 33. Rc2 {[%clk 0:00:08]}  Rxc2 {[%clk 0:00:28]} 34. Kxc2 {[%clk 0:00:09]}  Re2+ {[%clk 0:00:28]} 35. Kb1 {[%clk 0:00:09]}  Rd2 {[%clk 0:00:28]} 36. Rc1 {[%clk 0:00:09]}  Rxd5 {[%clk 0:00:27]} 37. Rxc7 {[%clk 0:00:09]}  Rd3 {[%clk 0:00:27]} 38. Nb6 {[%clk 0:00:07]}  Rxg3 {[%clk 0:00:26]} 39. Nd5 {[%clk 0:00:06]}  g5 {[%clk 0:00:25]} 40. Ne7+ {[%clk 0:00:07]}  Kf8 {[%clk 0:00:22]} 41. Nf5 {[%clk 0:00:07]}  Rg1+ {[%clk 0:00:21]} 42. Kc2 {[%clk 0:00:07]}  Rg2+ {[%clk 0:00:21]} 43. Kd3 {[%clk 0:00:08]}  Be5 {[%clk 0:00:22]} 44. Ra7 {[%clk 0:00:07]}  Rxa2 {[%clk 0:00:20]} 45. Ke4 {[%clk 0:00:07]}  Rf2 {[%clk 0:00:13]} 46. Rxa3 {[%clk 0:00:07]}  Rf4+ {[%clk 0:00:12]} 47. Kd5 {[%clk 0:00:08]}  Rxf5 {[%clk 0:00:13]} 48. Ke6 {[%clk 0:00:08]}  Rf3 {[%clk 0:00:12]} 49. Ra8+ {[%clk 0:00:07]}  Kg7 {[%clk 0:00:12]} 50. b4 {[%clk 0:00:08]}  g4 {[%clk 0:00:12]} 51. Ra7+ {[%clk 0:00:07]}  Kg6 {[%clk 0:00:11]} 52. Ra8 {[%clk 0:00:08]}  g3 {[%clk 0:00:11]} 53. Ra1 {[%clk 0:00:05]}  Bxa1 {[%clk 0:00:10]} 0-1


[Site "https://www.chess.com"]

[Event "Titled Tuesday Blitz January 03 Late 2023"]
[White "Pino Perez, Lazaro"]
[Black "Ballester Llagaria, Luis Eduardo"]
[WhiteFideId "3517055"]
[BlackFideId "2297620"]
[WhiteElo "2142"]
[BlackElo "2298"]
[Result "0-1"]
[Round "01"]
[TimeControl "180+2"]
[Date "2023.01.03"]
[WhiteClock "0:00:07"]
[BlackClock "0:00:07"]

1. d4 {[%clk 0:02:59]}  d5 {[%clk 0:02:59]} 2. Bf4 {[%clk 0:02:59]}  Nf6 {[%clk 0:02:58]} 3. e3 {[%clk 0:02:58]}  c5 {[%clk 0:02:59]} 4. Nf3 {[%clk 0:02:58]}  Nc6 {[%clk 0:02:59]} 5. Nbd2 {[%clk 0:02:57]}  e6 {[%clk 0:02:57]} 6. c3 {[%clk 0:02:57]}  cxd4 {[%clk 0:02:57]} 7. exd4 {[%clk 0:02:56]}  Nh5 {[%clk 0:02:57]} 8. Be3 {[%clk 0:02:57]}  Bd6 {[%clk 0:02:57]} 9. Ne5 {[%clk 0:02:57]}  Nf6 {[%clk 0:02:48]} 10. f4 {[%clk 0:02:51]}  Qb6 {[%clk 0:02:33]} 11. Qb3 {[%clk 0:02:48]}  Qxb3 {[%clk 0:02:29]} 12. axb3 {[%clk 0:02:49]}  Nd7 {[%clk 0:02:27]} 13. g3 {[%clk 0:02:30]}  f6 {[%clk 0:02:27]} 14. Nd3 {[%clk 0:02:29]}  e5 {[%clk 0:02:19]} 15. dxe5 {[%clk 0:02:24]}  fxe5 {[%clk 0:02:20]} 16. fxe5 {[%clk 0:02:16]}  Ndxe5 {[%clk 0:02:21]} 17. Nxe5 {[%clk 0:02:16]}  Nxe5 {[%clk 0:02:22]} 18. Bb5+ {[%clk 0:02:15]}  Bd7 {[%clk 0:02:20]} 19. Bxd7+ {[%clk 0:02:08]}  Kxd7 {[%clk 0:02:20]} 20. O-O-O {[%clk 0:02:07]}  Rhf8 {[%clk 0:02:03]} 21. Kc2 {[%clk 0:02:05]}  Ng4 {[%clk 0:01:41]} 22. Bd4 {[%clk 0:02:00]}  Nf2 {[%clk 0:01:35]} 23. Bxf2 {[%clk 0:01:58]}  Rxf2 {[%clk 0:01:36]} 24. Rdf1 {[%clk 0:01:51]}  Raf8 {[%clk 0:01:34]} 25. Rxf2 {[%clk 0:01:51]}  Rxf2 {[%clk 0:01:35]} 26. Rf1 {[%clk 0:01:51]}  Rxh2 {[%clk 0:01:20]} 27. Rf7+ {[%clk 0:01:50]}  Kc6 {[%clk 0:01:19]} 28. Rxg7 {[%clk 0:01:51]}  h5 {[%clk 0:01:19]} 29. Kd3 {[%clk 0:01:00]}  Rg2 {[%clk 0:01:16]} 30. Nf1 {[%clk 0:00:51]}  h4 {[%clk 0:01:11]} 31. Rg4 {[%clk 0:00:39]}  hxg3 {[%clk 0:01:03]} 32. b4 {[%clk 0:00:38]}  Rf2 {[%clk 0:01:00]} 33. Ne3 {[%clk 0:00:38]}  Rxb2 {[%clk 0:00:53]} 34. Rg5 {[%clk 0:00:35]}  Rf2 {[%clk 0:00:42]} 35. Rg6 {[%clk 0:00:33]}  Kd7 {[%clk 0:00:35]} 36. Nxd5 {[%clk 0:00:27]}  Rf3+ {[%clk 0:00:27]} 37. Ke2 {[%clk 0:00:23]}  Rf2+ {[%clk 0:00:25]} 38. Kd3 {[%clk 0:00:22]}  Rf3+ {[%clk 0:00:23]} 39. Ke2 {[%clk 0:00:22]}  Rf5 {[%clk 0:00:23]} 40. Ne3 {[%clk 0:00:21]}  Rf2+ {[%clk 0:00:21]} 41. Kd3 {[%clk 0:00:21]}  a6 {[%clk 0:00:18]} 42. Rg7+ {[%clk 0:00:19]}  Kc6 {[%clk 0:00:17]} 43. Rg6 {[%clk 0:00:19]}  Kc7 {[%clk 0:00:17]} 44. Rg7+ {[%clk 0:00:19]}  Kb8 {[%clk 0:00:15]} 45. Rg6 {[%clk 0:00:16]}  Bf4 {[%clk 0:00:13]} 46. Nd5 {[%clk 0:00:16]}  Be5 {[%clk 0:00:11]} 47. Rg5 {[%clk 0:00:15]}  Bd6 {[%clk 0:00:09]} 48. Rg6 {[%clk 0:00:15]}  Be5 {[%clk 0:00:07]} 49. Rg5 {[%clk 0:00:15]}  Bd6 {[%clk 0:00:04]} 50. Rg6 {[%clk 0:00:15]}  g2 {[%clk 0:00:04]} 51. Ne3 {[%clk 0:00:15]}  Bh2 {[%clk 0:00:02]} 52. Rxg2 {[%clk 0:00:14]}  Rxg2 {[%clk 0:00:02]} 53. Nxg2 {[%clk 0:00:15]}  Bd6 {[%clk 0:00:02]} 54. Ne3 {[%clk 0:00:14]}  Bc7 {[%clk 0:00:03]} 55. Kc4 {[%clk 0:00:14]}  Bd8 {[%clk 0:00:04]} 56. Kd5 {[%clk 0:00:14]}  Ka7 {[%clk 0:00:05]} 57. Nc2 {[%clk 0:00:11]}  Bf6 {[%clk 0:00:05]} 58. Kc4 {[%clk 0:00:10]}  Kb6 {[%clk 0:00:05]} 59. Ne3 {[%clk 0:00:10]}  Kc6 {[%clk 0:00:05]} 60. Nd5 {[%clk 0:00:09]}  b5+ {[%clk 0:00:06]} 61. Kd3 {[%clk 0:00:07]}  Kxd5 {[%clk 0:00:07]} 0-1


[Site "https://www.chess.com"]

[Event "Titled Tuesday Blitz January 03 Late 2023"]
[White "Torres Dominguez, David"]
[Black "Ozer, Omer Faruk"]
[WhiteFideId "2220857"]
[BlackFideId "6354564"]
[WhiteElo "1994"]
[BlackElo "2360"]
[Result "0-1"]
[Round "01"]
[TimeControl "180+2"]
[Date "2023.01.03"]
[WhiteClock "0:00:01"]
[BlackClock "0:00:02"]

1. e4 {[%clk 0:03:00]}  c5 {[%clk 0:02:59]} 2. Nc3 {[%clk 0:02:58]}  Nc6 {[%clk 0:02:59]} 3. f4 {[%clk 0:02:59]}  e6 {[%clk 0:02:58]} 4. Nf3 {[%clk 0:02:58]}  d5 {[%clk 0:02:59]} 5. Bb5 {[%clk 0:02:58]}  dxe4 {[%clk 0:02:54]} 6. Bxc6+ {[%clk 0:02:57]}  bxc6 {[%clk 0:02:55]} 7. Nxe4 {[%clk 0:02:57]}  Ba6 {[%clk 0:02:46]} 8. d3 {[%clk 0:02:49]}  c4 {[%clk 0:02:46]} 9. d4 {[%clk 0:02:22]}  Nf6 {[%clk 0:02:43]} 10. Nxf6+ {[%clk 0:02:15]}  gxf6 {[%clk 0:02:44]} 11. c3 {[%clk 0:02:02]}  Qd5 {[%clk 0:02:41]} 12. Be3 {[%clk 0:02:01]}  Rg8 {[%clk 0:02:35]} 13. O-O {[%clk 0:01:54]}  Bb7 {[%clk 0:02:34]} 14. Rf2 {[%clk 0:01:48]}  c5 {[%clk 0:02:11]} 15. dxc5 {[%clk 0:01:39]}  Rd8 {[%clk 0:02:06]} 16. Rd2 {[%clk 0:01:30]}  Bxc5 {[%clk 0:01:59]} 17. Rxd5 {[%clk 0:01:23]}  Bxe3+ {[%clk 0:01:58]} 18. Kf1 {[%clk 0:01:20]}  Rxd5 {[%clk 0:01:51]} 19. Qa4+ {[%clk 0:01:16]}  Kd8 {[%clk 0:01:33]} 20. Rd1 {[%clk 0:01:15]}  Bb6 {[%clk 0:01:28]} 21. g3 {[%clk 0:01:12]}  Ke7 {[%clk 0:01:14]} 22. Rxd5 {[%clk 0:01:06]}  Bxd5 {[%clk 0:01:14]} 23. Qb4+ {[%clk 0:01:03]}  Kd7 {[%clk 0:01:13]} 24. Nd2 {[%clk 0:00:58]}  Rc8 {[%clk 0:01:12]} 25. b3 {[%clk 0:00:54]}  cxb3 {[%clk 0:01:10]} 26. axb3 {[%clk 0:00:50]}  Bc5 {[%clk 0:01:10]} 27. Qa4+ {[%clk 0:00:47]}  Bc6 {[%clk 0:01:09]} 28. Qa5 {[%clk 0:00:44]}  Bb6 {[%clk 0:01:02]} 29. Qa6 {[%clk 0:00:42]}  Kc7 {[%clk 0:00:48]} 30. Nc4 {[%clk 0:00:41]}  Rd8 {[%clk 0:00:48]} 31. Nxb6 {[%clk 0:00:40]}  axb6 {[%clk 0:00:49]} 32. Qc4 {[%clk 0:00:36]}  f5 {[%clk 0:00:47]} 33. b4 {[%clk 0:00:36]}  Kb7 {[%clk 0:00:47]} 34. b5 {[%clk 0:00:34]}  Bd5 {[%clk 0:00:46]} 35. Qb4 {[%clk 0:00:34]}  Rc8 {[%clk 0:00:45]} 36. Kf2 {[%clk 0:00:31]}  Rc4 {[%clk 0:00:37]} 37. Qe7+ {[%clk 0:00:30]}  Rc7 {[%clk 0:00:37]} 38. Qb4 {[%clk 0:00:27]}  Be4 {[%clk 0:00:35]} 39. Ke3 {[%clk 0:00:26]}  Rd7 {[%clk 0:00:36]} 40. Kf2 {[%clk 0:00:20]}  h5 {[%clk 0:00:29]} 41. c4 {[%clk 0:00:20]}  h4 {[%clk 0:00:27]} 42. gxh4 {[%clk 0:00:18]}  Rc7 {[%clk 0:00:24]} 43. h5 {[%clk 0:00:17]}  f6 {[%clk 0:00:25]} 44. h6 {[%clk 0:00:11]}  e5 {[%clk 0:00:21]} 45. fxe5 {[%clk 0:00:10]}  fxe5 {[%clk 0:00:20]} 46. Qd6 {[%clk 0:00:10]}  f4 {[%clk 0:00:15]} 47. Qxe5 {[%clk 0:00:08]}  Rxc4 {[%clk 0:00:15]} 48. h7 {[%clk 0:00:05]}  Rc2+ {[%clk 0:00:12]} 49. Ke1 {[%clk 0:00:05]}  Bxh7 {[%clk 0:00:12]} 50. Qe7+ {[%clk 0:00:04]}  Rc7 {[%clk 0:00:11]} 51. Qe5 {[%clk 0:00:04]}  Rc1+ {[%clk 0:00:05]} 52. Kd2 {[%clk 0:00:03]}  Rc2+ {[%clk 0:00:05]} 53. Kd1 {[%clk 0:00:04]}  Rc7 {[%clk 0:00:06]} 54. Qxf4 {[%clk 0:00:04]}  Rd7+ {[%clk 0:00:06]} 55. Kc1 {[%clk 0:00:03]}  Rc7+ {[%clk 0:00:04]} 56. Kd1 {[%clk 0:00:03]}  Bg8 {[%clk 0:00:04]} 57. Qe4+ {[%clk 0:00:02]}  Ka7 {[%clk 0:00:03]} 58. Ke1 {[%clk 0:00:03]}  Bc4 {[%clk 0:00:02]} 59. Qe5 {[%clk 0:00:01]}  Rc5 {[%clk 0:00:02]} 0-1


[Site "https://www.chess.com"]

[Event "Titled Tuesday Blitz January 03 Late 2023"]
[White "Ilkhomi, Jaloliddin"]
[Black "Coelho, Ramyres Santana"]
[WhiteFideId "14700948"]
[BlackFideId "2120690"]
[WhiteElo "1997"]
[BlackElo "1981"]
[Result "1-0"]
[Round "01"]
[TimeControl "180+2"]
[Date "2023.01.03"]
[WhiteClock "0:01:44"]
[BlackClock "0:00:02"]

1. d4 {[%clk 0:02:58]}  c5 {[%clk 0:02:57]} 2. e3 {[%clk 0:02:56]}  cxd4 {[%clk 0:02:57]} 3. exd4 {[%clk 0:02:57]}  Nf6 {[%clk 0:02:58]} 4. c3 {[%clk 0:02:58]}  g6 {[%clk 0:02:59]} 5. Bg5 {[%clk 0:02:58]}  Bg7 {[%clk 0:03:00]} 6. Nd2 {[%clk 0:02:58]}  h6 {[%clk 0:03:00]} 7. Bh4 {[%clk 0:02:58]}  g5 {[%clk 0:03:00]} 8. Bg3 {[%clk 0:02:58]}  d6 {[%clk 0:02:59]} 9. Ngf3 {[%clk 0:02:57]}  Nh5 {[%clk 0:02:58]} 10. Bd3 {[%clk 0:02:56]}  Nxg3 {[%clk 0:02:51]} 11. hxg3 {[%clk 0:02:57]}  b6 {[%clk 0:02:40]} 12. Qe2 {[%clk 0:02:57]}  Bb7 {[%clk 0:02:29]} 13. O-O-O {[%clk 0:02:55]}  Nd7 {[%clk 0:02:25]} 14. Kb1 {[%clk 0:02:55]}  a5 {[%clk 0:02:23]} 15. Bb5 {[%clk 0:02:53]}  O-O {[%clk 0:02:18]} 16. Rhe1 {[%clk 0:02:53]}  e6 {[%clk 0:02:16]} 17. Bd3 {[%clk 0:02:47]}  Nf6 {[%clk 0:02:13]} 18. Ne4 {[%clk 0:02:44]}  Nxe4 {[%clk 0:02:12]} 19. Bxe4 {[%clk 0:02:45]}  Bxe4+ {[%clk 0:02:12]} 20. Qxe4 {[%clk 0:02:46]}  b5 {[%clk 0:02:10]} 21. Rh1 {[%clk 0:02:46]}  d5 {[%clk 0:02:00]} 22. Qd3 {[%clk 0:02:45]}  f5 {[%clk 0:01:59]} 23. Rde1 {[%clk 0:02:41]}  Qd7 {[%clk 0:01:55]} 24. Ne5 {[%clk 0:02:37]}  Bxe5 {[%clk 0:01:55]} 25. Rxe5 {[%clk 0:02:38]}  Rf6 {[%clk 0:01:51]} 26. Rhe1 {[%clk 0:02:34]}  b4 {[%clk 0:01:48]} 27. c4 {[%clk 0:02:34]}  dxc4 {[%clk 0:01:42]} 28. Qxc4 {[%clk 0:02:35]}  Rc8 {[%clk 0:01:43]} 29. Rc5 {[%clk 0:02:33]}  Rd8 {[%clk 0:01:34]} 30. Rd1 {[%clk 0:02:23]}  Qd6 {[%clk 0:01:18]} 31. d5 {[%clk 0:02:21]}  e5 {[%clk 0:01:06]} 32. Rc6 {[%clk 0:02:18]}  Qf8 {[%clk 0:00:55]} 33. Rxf6 {[%clk 0:02:07]}  Qxf6 {[%clk 0:00:54]} 34. d6+ {[%clk 0:02:08]}  Qf7 {[%clk 0:00:38]} 35. Qc7 {[%clk 0:02:09]}  Rd7 {[%clk 0:00:37]} 36. Qxa5 {[%clk 0:02:05]}  b3 {[%clk 0:00:33]} 37. Qxe5 {[%clk 0:01:59]}  bxa2+ {[%clk 0:00:32]} 38. Ka1 {[%clk 0:01:59]}  Kh7 {[%clk 0:00:16]} 39. Qd5 {[%clk 0:01:53]}  Qf6 {[%clk 0:00:11]} 40. Kxa2 {[%clk 0:01:47]}  Ra7+ {[%clk 0:00:09]} 41. Kb1 {[%clk 0:01:47]}  Rf7 {[%clk 0:00:02]} 42. d7 {[%clk 0:01:44]} 1-0


[Site "https://www.chess.com"]